lending/lending_fUSD_20250808
["ID","MTS","AMOUNT","RATE_DAILY","PERIOD"]
[378039950,1754675446171,-1191.04,0.00021129,2]
[378039951,1754675446180,-400.0,0.00021129,2]
[378039952,1754675446190,-611.08,0.00021129,2]
[378039953,1754675446199,-523.85,0.00021129,2]
[378039954,1754675446208,-999.3,0.0002113,2]
[378039955,1754675446218,-405.36,0.0002113,2]
[378039956,1754675446227,-415.74,0.0002113,2]
[378039957,1754675446235,-403.35,0.0002113,2]
[378039958,1754675446243,-400.0,0.0002113,2]
[378039959,1754675446252,-400.0,0.0002113,2]
[378039960,1754675446261,-400.0,0.0002113,2]
[378039961,1754675446270,-400.0,0.0002113,2]
[378039962,1754675446279,-400.0,0.0002113,2]
[378039963,1754675446289,-590.54,0.0002113,2]
[378039964,1754675446298,-400.0,0.0002113,2]
[378039965,1754675446308,-400.0,0.0002113,2]
[378039966,1754675446318,-1509.07,0.0002113,2]
[378039967,1754675446328,-1341.29,0.0002113,2]
[378039968,1754675446338,-2782.77,0.0002113,2]
[378039969,1754675446347,-400.0,0.0002113,2]
[378039970,1754675446356,-709.42,0.0002113,2]
[378039971,1754675446365,-151.0,0.00021131,2]
[378039972,1754675446374,-151.0,0.00021131,2]
[378039973,1754675446385,-400.0,0.0002118,2]
[378039974,1754675446395,-400.0,0.0002118,2]
[378039976,1754675446404,-400.0,0.0002118,2]
[378039978,1754675446414,-400.0,0.0002118,2]
[378039979,1754675446423,-492.02,0.0002118,2]
[378039981,1754675446437,-400.0,0.0002118,2]
[378039983,1754675446446,-452.57,0.0002118,2]
[378039985,1754675446455,-400.0,0.0002118,2]
[378039987,1754675446465,-1200.74,0.0002118,2]
[378039989,1754675446475,-1059.86,0.0002118,2]
[378039991,1754675446483,-400.0,0.0002118,2]
[378039993,1754675446493,-1430.07,0.0002118,2]
[378039995,1754675446503,-1392.24,0.0002118,2]
[378039999,1754675446517,-668.060012,0.00021187,2]
[378040000,1754675446527,-158.52,0.00021268,2]
[378040002,1754675446535,-150.0,0.0002127,2]
[378040004,1754675446545,-400.0,0.00021402,2]
[378040006,1754675446554,-400.0,0.00021402,2]
[378040009,1754675446563,-903.85,0.00021402,2]
[378040011,1754675446573,-808.39,0.00021403,2]
[378040012,1754675446582,-752.1,0.00021403,2]
[378040014,1754675446596,-400.0,0.00021403,2]
[378040016,1754675446605,-1333.48,0.00021403,2]
[378040018,1754675446614,-462.3,0.00021403,2]
[378040020,1754675446624,-849.68,0.00021403,2]
[378040022,1754675446634,-3076.59,0.00021403,2]
[378040024,1754675446644,-3518.48,0.00021403,2]
[378040026,1754675446653,-1191.04,0.00021403,2]
[378040029,1754675446663,-318.45375386,0.00021403,2]
[378040030,1754675446672,-611.08,0.00021403,2]
[378040032,1754675446682,-523.85,0.00021403,2]
[378040035,1754675446692,-999.3,0.00021404,2]
[378040037,1754675446701,-405.36,0.00021404,2]
[378040039,1754675446711,-415.74,0.00021404,2]
[378040041,1754675446720,-403.35,0.00021404,2]
[378040043,1754675446729,-400.0,0.00021404,2]
[378040045,1754675446738,-240.46690551,0.00021404,2]
[378040047,1754675446748,-400.0,0.00021404,2]
[378040048,1754675446757,-400.0,0.00021404,2]
[378040050,1754675446768,-400.0,0.00021404,2]
[378040052,1754675446778,-590.54,0.00021404,2]
[378040054,1754675446788,-527.30861526,0.00021404,2]
[378040056,1754675446798,-400.0,0.00021404,2]
[378040058,1754675446808,-1341.29,0.00021404,2]
[378040061,1754675446818,-1509.07,0.00021404,2]
[378040063,1754675446827,-2782.77,0.00021404,2]
[378040064,1754675446837,-400.0,0.00021404,2]
[378040066,1754675446849,-709.42,0.00021404,2]
[378040068,1754675446863,-400.0,0.00021454,2]
[378040071,1754675446873,-400.0,0.00021454,2]
[378040072,1754675446884,-400.0,0.00021454,2]
[378040074,1754675446894,-400.0,0.00021454,2]
[378040076,1754675446903,-492.02,0.00021454,2]
[378040078,1754675446913,-400.0,0.00021454,2]
[378040080,1754675446922,-452.57,0.00021454,2]
[378040082,1754675446931,-400.0,0.00021454,2]
[378040084,1754675446941,-1200.74,0.00021454,2]
[378040086,1754675446950,-1059.86,0.00021454,2]
[378040088,1754675446960,-400.0,0.00021454,2]
[378040090,1754675446969,-1430.07,0.00021454,2]
[378040092,1754675446979,-1392.24,0.00021454,2]
[378040094,1754675446988,-259.87,0.00021676,2]
[378040096,1754675446997,-400.0,0.00021676,2]
[378040098,1754675447007,-903.85,0.00021676,2]
[378040100,1754675447016,-808.39,0.00021677,2]
[378040102,1754675447026,-752.1,0.00021677,2]
[378040104,1754675447035,-400.0,0.00021677,2]
[378040106,1754675447045,-1333.48,0.00021677,2]
[378040108,1754675447054,-462.3,0.00021677,2]
[378040109,1754675447064,-849.68,0.00021677,2]
[378040111,1754675447074,-3076.59,0.00021677,2]
[378040113,1754675447083,-3518.48,0.00021677,2]
[378040115,1754675447092,-1191.04,0.00021677,2]
[378040117,1754675447101,-611.08,0.00021677,2]
[378040119,1754675447111,-523.85,0.00021677,2]
[378040121,1754675447120,-999.3,0.00021678,2]
[378040123,1754675447130,-405.36,0.00021678,2]
[378040125,1754675447140,-415.74,0.00021678,2]
[378040127,1754675447149,-403.35,0.00021678,2]
[378040129,1754675447158,-400.0,0.00021678,2]
[378040131,1754675447167,-400.0,0.00021678,2]
[378040132,1754675447177,-400.0,0.00021678,2]
[378040134,1754675447186,-400.0,0.00021678,2]
[378040136,1754675447195,-590.54,0.00021678,2]
[378040138,1754675447204,-400.0,0.00021678,2]
[378040140,1754675447214,-1341.29,0.00021678,2]
[378040142,1754675447223,-1509.07,0.00021678,2]
[378040144,1754675447232,-2782.77,0.00021678,2]
[378040146,1754675447242,-400.0,0.00021678,2]
[378040148,1754675447251,-709.42,0.00021678,2]
[378040150,1754675447261,-400.0,0.00021728,2]
[378040152,1754675447271,-400.0,0.00021728,2]
[378040154,1754675447283,-400.0,0.00021728,2]
[378040156,1754675447292,-400.0,0.00021728,2]
[378040158,1754675447302,-492.02,0.00021728,2]
[378040160,1754675447311,-400.0,0.00021728,2]
[378040162,1754675447321,-452.57,0.00021728,2]
[378040164,1754675447330,-400.0,0.00021728,2]
[378040166,1754675447339,-1200.74,0.00021728,2]
[378040168,1754675447349,-1059.86,0.00021728,2]
[378040170,1754675447359,-400.0,0.00021728,2]
[378040172,1754675447370,-1430.07,0.00021728,2]
[378040174,1754675447387,-1392.24,0.00021728,2]
[378040176,1754675447396,-500.0,0.00021917,2]
[378040178,1754675447407,-200.40497792,0.00021917,2]
[378040180,1754675447420,-150.0,0.00021918,2]
[378040182,1754675447429,-400.0,0.0002195,2]
[378040184,1754675447442,-903.85,0.0002195,2]
[378040186,1754675447451,-3776.0,0.0002195,3]
[378040198,1754675447557,-3776.0,0.0002195,3]
[378040200,1754675447566,-808.39,0.00021951,2]
[378040202,1754675447576,-752.1,0.00021951,2]
[378040204,1754675447585,-400.0,0.00021951,2]
[378040206,1754675447595,-1333.48,0.00021951,2]
[378040208,1754675447604,-462.3,0.00021951,2]
[378040210,1754675447614,-849.68,0.00021951,2]
[378040212,1754675447624,-3076.59,0.00021951,2]
[378040214,1754675447634,-3518.48,0.00021951,2]
[378040216,1754675447643,-1191.04,0.00021951,2]
[378040217,1754675447653,-611.08,0.00021951,2]
[378040220,1754675447663,-523.85,0.00021951,2]
[378040222,1754675447673,-3776.0,0.00021952,3]
[378040224,1754675447682,-999.3,0.00021952,2]
[378040226,1754675447692,-405.36,0.00021952,2]
[378040228,1754675447701,-415.74,0.00021952,2]
[378040230,1754675447711,-403.35,0.00021952,2]
[378040232,1754675447720,-400.0,0.00021952,2]
[378040234,1754675447730,-541.87844316,0.00021952,2]
[378040236,1754675447740,-400.0,0.00021952,2]
[378040238,1754675447749,-400.0,0.00021952,2]
[378040239,1754675447759,-590.54,0.00021952,2]
[378040240,1754675447767,-400.0,0.00021952,2]
[378040241,1754675447776,-1341.29,0.00021952,2]
[378040242,1754675447786,-1509.07,0.00021952,2]
[378040243,1754675447795,-2782.77,0.00021952,2]
[378040244,1754675447804,-400.0,0.00021952,2]
[378040245,1754675447813,-709.42,0.00021952,2]
[378040246,1754675447822,-400.0,0.00022002,2]
[378040247,1754675447831,-537.12819355,0.00022002,2]
[378040248,1754675447841,-400.0,0.00022002,2]
[378040249,1754675447850,-400.0,0.00022002,2]
[378040250,1754675447859,-492.02,0.00022002,2]
[378040251,1754675447868,-400.0,0.00022002,2]
[378040252,1754675447878,-452.57,0.00022002,2]
[378040253,1754675447889,-400.0,0.00022002,2]
[378040254,1754675447899,-1200.74,0.00022002,2]
[378040255,1754675447909,-1059.86,0.00022002,2]
[378040256,1754675447918,-400.0,0.00022002,2]
[378040258,1754675447927,-1430.07,0.00022002,2]
[378040260,1754675447937,-1392.24,0.00022002,2]
[378040262,1754675447946,-156.7,0.00022036,2]
[378040264,1754675447955,-1000.0,0.00022222,2]
[378040266,1754675447964,-400.0,0.00022224,2]
[378040268,1754675447974,-903.85,0.00022224,2]
[378040270,1754675447983,-808.39,0.00022225,2]
[378040272,1754675447992,-752.1,0.00022225,2]
[378040274,1754675448002,-400.0,0.00022225,2]
[378040276,1754675448011,-1333.48,0.00022225,2]
[378040279,1754675448021,-462.3,0.00022225,2]
[378040281,1754675448031,-849.68,0.00022225,2]
[378040283,1754675448040,-3076.59,0.00022225,2]
[378040285,1754675448050,-3518.48,0.00022225,2]
[378040287,1754675448059,-1191.04,0.00022225,2]
[378040289,1754675448068,-611.08,0.00022225,2]
[378040291,1754675448078,-523.85,0.00022225,2]
[378040293,1754675448088,-999.3,0.00022226,2]
[378040295,1754675448097,-405.36,0.00022226,2]
[378040297,1754675448107,-415.74,0.00022226,2]
[378040299,1754675448117,-403.35,0.00022226,2]
[378040301,1754675448126,-400.0,0.00022226,2]
[378040303,1754675448136,-400.0,0.00022226,2]
[378040305,1754675448145,-400.0,0.00022226,2]
[378040306,1754675448154,-590.54,0.00022226,2]
[378040308,1754675448163,-1341.29,0.00022226,2]
[378040310,1754675448173,-1509.07,0.00022226,2]
[378040312,1754675448182,-2782.77,0.00022226,2]
[378040314,1754675448192,-400.0,0.00022226,2]
[378040316,1754675448201,-709.42,0.00022226,2]
[378040318,1754675448210,-211.62674257,0.00022262,2]
[378040320,1754675448220,-842.44706758,0.00022262,2]
[378040322,1754675448229,-457.64618948,0.00022262,2]
[378040323,1754675448238,-400.0,0.00022276,2]
[378040324,1754675448247,-400.0,0.00022276,2]
[378040325,1754675448257,-400.0,0.00022276,2]
[378040326,1754675448266,-492.02,0.00022276,2]
[378040327,1754675448275,-400.0,0.00022276,2]
[378040328,1754675448285,-452.57,0.00022276,2]
[378040329,1754675448294,-400.0,0.00022276,2]
[378040330,1754675448304,-1200.74,0.00022276,2]
[378040331,1754675448313,-1059.86,0.00022276,2]
[378040332,1754675448324,-400.0,0.00022276,2]
[378040333,1754675448334,-1430.07,0.00022276,2]
[378040334,1754675448343,-1392.24,0.00022276,2]
[378040335,1754675448353,-199.72,0.0002236,2]
[378040336,1754675448364,-150.0,0.0002245,2]
[378040337,1754675448374,-297.54508353,0.00022498,2]
[378040338,1754675448385,-903.85,0.00022498,2]
[378040339,1754675448395,-808.39,0.00022499,2]
[378040340,1754675448404,-752.1,0.00022499,2]
[378040341,1754675448414,-400.0,0.00022499,2]
[378040342,1754675448424,-1333.48,0.00022499,2]
[378040343,1754675448438,-462.3,0.00022499,2]
[378040344,1754675448448,-849.68,0.00022499,2]
[378040345,1754675448459,-3076.59,0.00022499,2]
[378040346,1754675448470,-3518.48,0.00022499,2]
[378040347,1754675448481,-1191.04,0.00022499,2]
[378040348,1754675448491,-611.08,0.00022499,2]
[378040349,1754675448503,-523.85,0.00022499,2]
[378040350,1754675448513,-999.3,0.000225,2]
[378040351,1754675448522,-405.36,0.000225,2]
[378040352,1754675448532,-415.74,0.000225,2]
[378040353,1754675448542,-403.35,0.000225,2]
[378040354,1754675448552,-400.0,0.000225,2]
[378040355,1754675448562,-400.0,0.000225,2]
[378040356,1754675448572,-400.0,0.000225,2]
[378040357,1754675448581,-590.54,0.000225,2]
[378040358,1754675448592,-1341.29,0.000225,2]
[378040359,1754675448601,-1509.07,0.000225,2]
[378040360,1754675448612,-2782.77,0.000225,2]
[378040361,1754675448621,-400.0,0.000225,2]
[378040362,1754675448632,-709.42,0.000225,2]
[378040363,1754675448645,-400.0,0.0002255,2]
[378040364,1754675448655,-400.0,0.0002255,2]
[378040365,1754675448665,-400.0,0.0002255,2]
[378040366,1754675448675,-492.02,0.0002255,2]
[378040367,1754675448685,-400.0,0.0002255,2]
[378040368,1754675448695,-452.57,0.0002255,2]
[378040369,1754675448705,-400.0,0.0002255,2]
[378040370,1754675448715,-1200.74,0.0002255,2]
[378040371,1754675448725,-1059.86,0.0002255,2]
[378040372,1754675448735,-400.0,0.0002255,2]
[378040373,1754675448746,-1430.07,0.0002255,2]
[378040374,1754675448760,-1392.24,0.0002255,2]
[378040375,1754675448784,-150.99,0.00022562,2]
[378040376,1754675448803,-1569.64,0.00022562,2]
[378040377,1754675448814,-5813.33,0.00022562,2]
[378040378,1754675448824,-903.85,0.00022772,2]
[378040379,1754675448835,-808.39,0.00022773,2]
[378040380,1754675448846,-752.1,0.00022773,2]
[378040381,1754675448856,-281.33,0.00022773,2]
[378040382,1754675448867,-1333.48,0.00022773,2]
[378040383,1754675448877,-462.3,0.00022773,2]
[378040384,1754675448891,-849.68,0.00022773,2]
[378040385,1754675448902,-3076.59,0.00022773,2]
[378040386,1754675448912,-3518.48,0.00022773,2]
[378040387,1754675448921,-1191.04,0.00022773,2]
[378040388,1754675448931,-611.08,0.00022773,2]
[378040389,1754675448942,-523.85,0.00022773,2]
[378040390,1754675448952,-999.3,0.00022774,2]
[378040391,1754675448961,-405.36,0.00022774,2]
[378040392,1754675448971,-415.74,0.00022774,2]
[378040393,1754675448981,-403.35,0.00022774,2]
[378040394,1754675448991,-400.0,0.00022774,2]
[378040395,1754675449001,-400.0,0.00022774,2]
[378040396,1754675449011,-400.0,0.00022774,2]
[378040397,1754675449021,-590.54,0.00022774,2]
[378040398,1754675449032,-1341.29,0.00022774,2]
[378040399,1754675449042,-1509.07,0.00022774,2]
[378040400,1754675449052,-2782.77,0.00022774,2]
[378040401,1754675449063,-400.0,0.00022774,2]
[378040402,1754675449074,-709.42,0.00022774,2]
[378040403,1754675449084,-400.0,0.00022824,2]
[378040404,1754675449093,-400.0,0.00022824,2]
[378040405,1754675449103,-400.0,0.00022824,2]
[378040406,1754675449113,-492.02,0.00022824,2]
[378040407,1754675449122,-400.0,0.00022824,2]
[378040408,1754675449136,-452.57,0.00022824,2]
[378040409,1754675449146,-400.0,0.00022824,2]
[378040410,1754675449155,-1200.74,0.00022824,2]
[378040411,1754675449166,-1059.86,0.00022824,2]
[378040412,1754675449176,-462.75470079,0.00022824,2]
[378040413,1754675449185,-1430.07,0.00022824,2]
[378040414,1754675449199,-1392.24,0.00022824,2]
[378040415,1754675449209,-4111.18893822,0.00022876,2]
[378040416,1754675449219,-160.0,0.00023,3]
[378040417,1754675449229,-903.85,0.00023046,2]
[378040418,1754675449239,-881.88,0.00023047,2]
[378040419,1754675449248,-808.39,0.00023047,2]
[378040420,1754675449258,-752.1,0.00023047,2]
[378040421,1754675449267,-1333.48,0.00023047,2]
[378040422,1754675449277,-462.3,0.00023047,2]
[378040423,1754675449287,-849.68,0.00023047,2]
[378040424,1754675449296,-3076.59,0.00023047,2]
[378040425,1754675449305,-3518.48,0.00023047,2]
[378040426,1754675449315,-1191.04,0.00023047,2]
[378040427,1754675449325,-611.08,0.00023047,2]
[378040428,1754675449334,-523.85,0.00023047,2]
[378040429,1754675449344,-398.69675203,0.00023048,2]
[378040430,1754675449353,-999.3,0.00023048,2]
[378040431,1754675449362,-405.36,0.00023048,2]
[378040432,1754675449372,-415.74,0.00023048,2]
[378040433,1754675449381,-403.35,0.00023048,2]
[378040434,1754675449395,-400.0,0.00023048,2]
[378040435,1754675449404,-400.0,0.00023048,2]
[378040436,1754675449413,-400.0,0.00023048,2]
[378040437,1754675449422,-590.54,0.00023048,2]
[378040438,1754675449435,-1341.29,0.00023048,2]
[378040439,1754675449445,-1509.07,0.00023048,2]
[378040440,1754675449454,-399.15039712,0.00023048,2]
[378040441,1754675449707,-1888.0,0.00019711,3]
[378040442,1754675449716,-1888.0,0.00020259,3]
[378040443,1754675449726,-1888.0,0.00020807,3]
[378040444,1754675449735,-3776.0,0.00021951,3]
[378040445,1754675449744,-3776.0,0.00022499,3]
[378040446,1754675449989,-3776.0,0.00023047,3]
[378040447,1754675450006,-2383.61960288,0.00023048,2]
[378040448,1754675450015,-400.0,0.00023048,2]
[378040449,1754675450026,-709.42,0.00023048,2]
[378040450,1754675450035,-400.0,0.00023098,2]
[378040451,1754675450045,-400.0,0.00023098,2]
[378040452,1754675450056,-400.0,0.00023098,2]
[378040453,1754675450065,-492.02,0.00023098,2]
[378040454,1754675450075,-400.0,0.00023098,2]
[378040455,1754675450086,-452.57,0.00023098,2]
[378040456,1754675450095,-400.0,0.00023098,2]
[378040457,1754675450105,-1200.74,0.00023098,2]
[378040458,1754675450114,-1059.86,0.00023098,2]
[378040459,1754675450124,-1430.07,0.00023098,2]
[378040460,1754675450135,-1392.24,0.00023098,2]
[378040461,1754675450145,-668.060012,0.00023262,2]
[378040462,1754675450155,-903.85,0.0002332,2]
[378040463,1754675450165,-881.88,0.00023321,2]
[378040464,1754675450174,-808.39,0.00023321,2]
[378040465,1754675450183,-752.1,0.00023321,2]
[378040466,1754675450193,-1333.48,0.00023321,2]
[378040467,1754675450203,-462.3,0.00023321,2]
[378040468,1754675450212,-849.68,0.00023321,2]
[378040469,1754675450222,-3076.59,0.00023321,2]
[378040470,1754675450231,-3518.48,0.00023321,2]
[378040471,1754675450241,-1191.04,0.00023321,2]
[378040472,1754675450251,-611.08,0.00023321,2]
[378040473,1754675450261,-523.85,0.00023321,2]
[378040474,1754675450270,-999.3,0.00023322,2]
[378040475,1754675450280,-405.36,0.00023322,2]
[378040476,1754675450289,-415.74,0.00023322,2]
[378040477,1754675450299,-403.35,0.00023322,2]
[378040478,1754675450309,-400.0,0.00023322,2]
[378040479,1754675450319,-160.22623425,0.00023322,2]
[378040480,1754675450328,-512.79492809,0.00023322,2]
[378040481,1754675450338,-590.54,0.00023322,2]
[378040482,1754675450348,-1341.29,0.00023322,2]
[378040483,1754675450357,-1509.07,0.00023322,2]
[378040484,1754675450366,-2782.77,0.00023322,2]
[378040485,1754675450375,-400.0,0.00023322,2]
[378040486,1754675450387,-709.42,0.00023322,2]
[378040487,1754675450396,-400.0,0.00023372,2]
[378040488,1754675450406,-400.0,0.00023372,2]
[378040489,1754675450415,-308.66266614,0.00023372,2]
[378040490,1754675450424,-492.02,0.00023372,2]
[378040491,1754675450436,-400.0,0.00023372,2]
[378040492,1754675450445,-452.57,0.00023372,2]
[378040493,1754675450454,-546.05442542,0.00023372,2]
[378040494,1754675450464,-1200.74,0.00023372,2]
[378040495,1754675450475,-1059.86,0.00023372,2]
[378040496,1754675450484,-1430.07,0.00023372,2]
[378040497,1754675450494,-1392.24,0.00023372,2]
[378040498,1754675450503,-903.85,0.00023594,2]
[378040499,1754675450512,-881.88,0.00023595,2]
[378040500,1754675450522,-808.39,0.00023595,2]
[378040501,1754675450531,-752.1,0.00023595,2]
[378040502,1754675450540,-1333.48,0.00023595,2]
[378040503,1754675450550,-462.3,0.00023595,2]
[378040504,1754675450560,-849.68,0.00023595,2]
[378040505,1754675450569,-3076.59,0.00023595,2]
[378040506,1754675450579,-3518.48,0.00023595,2]
[378040507,1754675450588,-1191.04,0.00023595,2]
[378040508,1754675450598,-611.08,0.00023595,2]
[378040509,1754675450608,-523.85,0.00023595,2]
[378040510,1754675450617,-999.3,0.00023596,2]
[378040511,1754675450627,-405.36,0.00023596,2]
[378040512,1754675450638,-415.74,0.00023596,2]
[378040513,1754675450647,-403.35,0.00023596,2]
[378040514,1754675450657,-400.0,0.00023596,2]
[378040515,1754675450667,-590.54,0.00023596,2]
[378040516,1754675450676,-1341.29,0.00023596,2]
[378040517,1754675450685,-1509.07,0.00023596,2]
[378040518,1754675450695,-2782.77,0.00023596,2]
[378040519,1754675450704,-400.0,0.00023596,2]
[378040520,1754675450714,-709.42,0.00023596,2]
[378040521,1754675450724,-220.0,0.0002363,2]
[378040522,1754675450733,-545.46,0.00023646,2]
[378040523,1754675450743,-400.0,0.00023646,2]
[378040524,1754675450752,-492.02,0.00023646,2]
[378040525,1754675450761,-400.0,0.00023646,2]
[378040526,1754675450771,-452.57,0.00023646,2]
[378040527,1754675450781,-1200.74,0.00023646,2]
[378040528,1754675450791,-1059.86,0.00023646,2]
[378040529,1754675450801,-1430.07,0.00023646,2]
[378040530,1754675450812,-1392.24,0.00023646,2]
[378040531,1754675450825,-500.0,0.00023709,2]
[378040532,1754675450834,-903.85,0.00023868,2]
[378040533,1754675450844,-881.88,0.00023869,2]
[378040534,1754675450853,-808.39,0.00023869,2]
[378040535,1754675450863,-752.1,0.00023869,2]
[378040536,1754675450873,-1333.48,0.00023869,2]
[378040537,1754675450883,-462.3,0.00023869,2]
[378040538,1754675450893,-849.68,0.00023869,2]
[378040539,1754675450903,-3076.59,0.00023869,2]
[378040540,1754675450912,-3518.48,0.00023869,2]
[378040541,1754675450922,-1191.04,0.00023869,2]
[378040542,1754675450932,-611.08,0.00023869,2]
[378040543,1754675450942,-523.85,0.00023869,2]
[378040544,1754675450952,-999.3,0.0002387,2]
[378040545,1754675450962,-405.36,0.0002387,2]
[378040546,1754675450971,-415.74,0.0002387,2]
[378040547,1754675450981,-403.35,0.0002387,2]
[378040548,1754675450991,-400.0,0.0002387,2]
[378040549,1754675451000,-590.54,0.0002387,2]
[378040550,1754675451010,-1341.29,0.0002387,2]
[378040551,1754675451019,-1509.07,0.0002387,2]
[378040552,1754675451028,-2782.77,0.0002387,2]
[378040553,1754675451037,-400.0,0.0002387,2]
[378040554,1754675451047,-709.42,0.0002387,2]
[378040555,1754675451056,-400.0,0.0002392,2]
[378040556,1754675451065,-492.02,0.0002392,2]
[378040557,1754675451075,-400.0,0.0002392,2]
[378040558,1754675451084,-452.57,0.0002392,2]
[378040559,1754675451093,-1200.74,0.0002392,2]
[378040560,1754675451103,-1059.86,0.0002392,2]
[378040561,1754675451112,-1430.07,0.0002392,2]
[378040562,1754675451121,-1392.24,0.0002392,2]
[378040563,1754675451131,-160.0,0.00024,7]
[378040564,1754675451142,-3364.0,0.00024034,2]
[378040565,1754675451151,-6077.0,0.00024034,2]
[378040566,1754675451160,-1279.926,0.00024034,2]
[378040567,1754675451169,-866.0,0.00024034,2]
[378040568,1754675451178,-428.9075,0.00024109,2]
[378040569,1754675451187,-903.85,0.00024142,2]
[378040570,1754675451196,-881.88,0.00024143,2]
[378040571,1754675451205,-752.1,0.00024143,2]
[378040572,1754675451215,-1333.48,0.00024143,2]
[378040573,1754675451224,-462.3,0.00024143,2]
[378040574,1754675451233,-849.68,0.00024143,2]
[378040575,1754675451242,-3076.59,0.00024143,2]
[378040576,1754675451251,-3518.48,0.00024143,2]
[378040577,1754675451260,-1191.04,0.00024143,2]
[378040578,1754675451270,-611.08,0.00024143,2]
[378040579,1754675451279,-523.85,0.00024143,2]
[378040580,1754675451288,-999.3,0.00024144,2]
[378040581,1754675451298,-405.36,0.00024144,2]
[378040582,1754675451306,-415.74,0.00024144,2]
[378040583,1754675451316,-403.35,0.00024144,2]
[378040584,1754675451327,-400.0,0.00024144,2]
[378040585,1754675451336,-590.54,0.00024144,2]
[378040586,1754675451346,-1341.29,0.00024144,2]
[378040587,1754675451355,-1509.07,0.00024144,2]
[378040588,1754675451364,-2782.77,0.00024144,2]
[378040589,1754675451374,-256.61438963,0.00024144,2]
[378040590,1754675451385,-709.42,0.00024144,2]
[378040591,1754675451395,-408.39,0.00024194,2]
[378040592,1754675451404,-492.02,0.00024194,2]
[378040593,1754675451413,-361.57709882,0.00024194,2]
[378040594,1754675451422,-452.57,0.00024194,2]
[378040595,1754675451435,-1200.74,0.00024194,2]
[378040596,1754675451444,-1059.86,0.00024194,2]
[378040597,1754675451454,-1430.07,0.00024194,2]
[378040598,1754675451463,-1392.24,0.00024194,2]
[378040599,1754675451474,-156.7,0.00024359,2]
[378040600,1754675451484,-2500.0,0.00024411,7]
[378040601,1754675451494,-903.85,0.00024416,2]
[378040602,1754675451505,-881.88,0.00024417,2]
[378040603,1754675451518,-752.1,0.00024417,2]
[378040604,1754675451528,-1333.48,0.00024417,2]
[378040605,1754675451538,-462.3,0.00024417,2]
[378040606,1754675451547,-849.68,0.00024417,2]
[378040607,1754675451557,-3076.59,0.00024417,2]
[378040608,1754675451568,-3518.48,0.00024417,2]
[378040609,1754675451578,-1191.04,0.00024417,2]
[378040610,1754675451588,-611.08,0.00024417,2]
[378040611,1754675451598,-4903.02146686,0.00024417,2]
[378040612,1754675451614,-1127.46853314,0.00024417,2]
[378040613,1754675451625,-523.85,0.00024417,2]
[378040614,1754675451635,-999.3,0.00024418,2]
[378040615,1754675451645,-405.36,0.00024418,2]
[378040616,1754675451654,-415.74,0.00024418,2]
[378040617,1754675451663,-403.35,0.00024418,2]
[378040618,1754675451673,-400.0,0.00024418,2]